fUSD/lending_fUSD_20240819
["ID","MTS","AMOUNT","RATE_DAILY","PERIOD"]
[335311825,1724100641914,-666.84,0.00012,2]
[335311826,1724100641923,-666.84,0.00012,2]
[335311827,1724100641933,-666.84,0.00012,2]
[335311828,1724100641942,-666.84,0.00012,2]
[335311829,1724100641951,-666.84,0.00012,2]
[335311830,1724100641960,-666.84,0.00012,2]
[335311831,1724100641970,-666.84,0.00012,2]
[335311832,1724100641980,-666.84,0.00012,2]
[335311833,1724100641989,-666.84,0.00012,2]
[335311834,1724100641998,-666.84,0.00012,2]
[335311835,1724100642007,-666.84,0.00012,2]
[335311836,1724100642016,-666.84,0.00012,2]
[335311837,1724100642026,-760.52558661,0.00012012,2]
[335311838,1724100642038,-300.0,0.00012022,2]
[335311839,1724100642047,-18476.66057535,0.00012023,2]
[335311840,1724100642057,-596.72,0.00012033,2]
[335311841,1724100642067,-44439.45,0.00012055,2]
[335311842,1724100642077,-225.0,0.0001207,2]
[335311843,1724100642086,-2297.03401,0.0001207,2]
[335311844,1724100642095,-890.7,0.00012138,2]
[335311845,1724100642105,-152.0,0.00012167,6]
[335311846,1724100642114,-153.15,0.0001222,2]
[335311847,1724100642123,-226.0,0.000124,2]
[335311848,1724100642133,-358.0,0.000124,2]
[335311849,1724100642143,-1000.0,0.000124,2]
[335311850,1724100642152,-500.74,0.00012411,2]
[335311851,1724100642161,-596.72,0.00012458,2]
[335311852,1724100642171,-3045.0,0.00012463,7]
[335311853,1724100642180,-290.03886764,0.000125,2]
[335311854,1724100642190,-1008.0,0.000125,3]
[335311855,1724100642199,-10537.37833577,0.0001251,2]
[335311856,1724100642209,-234.00004883,0.00012524,5]
[335311857,1724100642218,-568.636,0.00012533,2]
[335311858,1724100642227,-242856.0,0.00012551,2]
[335311859,1724100642237,-794.0,0.00012562,2]
[335311860,1724100642246,-499.26,0.00012575,2]
[335311861,1724100642256,-152.0,0.0001258,7]
[335311862,1724100642265,-1168.58524414,0.000126,2]
[335311863,1724100642275,-500.0,0.00012611,2]
[335311864,1724100642284,-500.0,0.00012626,2]
[335311865,1724100642295,-18476.66057535,0.00012639,2]
[335311866,1724100642304,-150.0,0.00012649,5]
[335311867,1724100642314,-150.21952285,0.00012649,5]
[335311868,1724100642323,-500.0,0.00012674,2]
[335311869,1724100642333,-500.73343581,0.00012674,2]
[335311870,1724100642342,-500.0,0.00012674,2]
[335311871,1724100642351,-1090.0,0.0001268,2]
[335311872,1724100642360,-237.48,0.00012685,2]
[335311873,1724100642370,-150.0,0.0001269,2]
[335311874,1724100642378,-150.0,0.0001269,2]
[335311875,1724100642388,-150.11076638,0.0001269,2]
[335311876,1724100642398,-150.0,0.0001269,2]
[335311877,1724100642407,-150.36976687,0.0001269,2]
[335311878,1724100642416,-150.12629985,0.0001269,2]
[335311879,1724100642425,-150.21138683,0.0001269,2]
[335311880,1724100642434,-150.11488269,0.0001269,2]
[335311881,1724100642443,-150.0,0.0001269,2]
[335311882,1724100642452,-299.67649273,0.0001269,2]
[335311883,1724100642461,-150.0,0.0001269,2]
[335311884,1724100642470,-150.28047735,0.0001269,2]
[335311885,1724100642479,-150.0,0.0001269,2]
[335311886,1724100642488,-150.09981914,0.0001269,2]
[335311887,1724100642497,-150.0,0.00012709,2]
[335311888,1724100642506,-639.89,0.00012724,2]
[335311889,1724100642515,-150.0,0.00012727,2]
[335311890,1724100642525,-150.0,0.00012746,2]
[335311891,1724100642534,-150.0,0.00012746,2]
[335311892,1724100642544,-150.0,0.00012754,2]
[335311893,1724100642554,-150.0,0.00012764,2]
[335311894,1724100642563,-150.0,0.00012783,2]
[335311895,1724100642572,-816.0,0.000128,2]
[335311896,1724100642581,-1118.2,0.000128,2]
[335311897,1724100642591,-507.278334,0.000128,2]
[335311898,1724100642600,-150.0,0.00012801,2]
[335311899,1724100642609,-150.0,0.00012803,2]
[335311900,1724100642620,-1090.0,0.00012811,2]
[335311902,1724100642629,-150.0,0.00012818,2]
[335311903,1724100642639,-150.0,0.0001282,2]
[335311904,1724100642648,-150.0,0.00012838,2]
[335311905,1724100642658,-349.0,0.0001284,2]
[335311906,1724100642667,-150.0,0.00012857,2]
[335311907,1724100642677,-150.0,0.00012859,2]
[335311909,1724100642686,-150.0,0.00012866,2]
[335311910,1724100642698,-150.0,0.00012876,2]
[335311911,1724100642707,-150.0,0.00012882,2]
[335311913,1724100642716,-596.72,0.00012884,2]
[335311915,1724100642725,-150.0,0.00012894,2]
[335311916,1724100642735,-150.0,0.00012913,2]
[335311918,1724100642744,-150.0,0.00012916,2]
[335311919,1724100642754,-150.0,0.00012931,2]
[335311920,1724100642764,-1090.0,0.00012941,2]
[335311921,1724100642774,-150.0,0.00012946,2]
[335311922,1724100642783,-150.0,0.0001295,2]
[335311923,1724100642794,-150.0,0.00012968,2]
[335311924,1724100642803,-150.0,0.00012972,2]
[335311925,1724100642813,-150.0,0.00012987,2]
[335311926,1724100642822,-152.0,0.00012993,8]
[335311927,1724100642832,-494.22410505,0.00013,2]
[335311928,1724100642842,-226.9718815,0.00013,2]
[335311929,1724100642851,-4176.19531755,0.00013,2]
[335311930,1724100642862,-3000.0,0.00013,3]
[335311931,1724100642872,-20246.06548838,0.00013,2]
[335311932,1724100642881,-2000.0,0.00013,2]
[335311933,1724100642891,-2000.0,0.00013,2]
[335311934,1724100642900,-10000.0,0.00013,2]
[335311935,1724100642909,-2000.0,0.00013,2]
[335311936,1724100642919,-2000.0,0.00013,2]
[335311937,1724100642928,-199.89762838,0.00013,2]
[335311938,1724100642938,-2502.58566001,0.00013,2]
[335311939,1724100642947,-150.0,0.00013005,2]
[335311940,1724100642957,-150.0,0.0001301,2]
[335311941,1724100642967,-150.0,0.00013024,2]
[335311942,1724100642976,-150.0,0.00013028,2]
[335311943,1724100642986,-150.0,0.00013043,2]
[335311944,1724100642996,-150.0,0.00013043,2]
[335311945,1724100643006,-5044.91393317,0.0001305,2]
[335311946,1724100643016,-150.0,0.00013061,2]
[335311947,1724100643025,-1090.0,0.00013072,2]
[335311948,1724100643034,-795.28860661,0.00013072,2]
[335311949,1724100643045,-150.0,0.00013075,2]
[335311950,1724100643055,-500.0,0.00013077,2]
[335311951,1724100643065,-150.0,0.0001308,2]
[335311952,1724100643075,-150.0,0.00013085,2]
[335311953,1724100643084,-9411.16016404,0.0001309,2]
[335311954,1724100643094,-150.0,0.00013098,2]
[335311955,1724100643103,-150.0,0.00013117,2]
[335311956,1724100643113,-150.0,0.00013135,2]
[335311957,1724100643122,-150.0,0.00013139,2]
[335311958,1724100643132,-150.0,0.00013141,2]
[335311959,1724100643141,-151.0,0.00013151,2]
[335311960,1724100643151,-150.0,0.00013154,2]
[335311961,1724100643160,-150.0,0.00013172,2]
[335311962,1724100643170,-794.0,0.0001319,2]
[335311963,1724100643180,-150.0,0.00013191,2]
[335311964,1724100643190,-150.0,0.00013198,2]
[335311965,1724100643199,-150.0,0.00013203,2]
[335311966,1724100643208,-1090.0,0.00013203,2]
[335311967,1724100643218,-686.995035,0.00013208,2]
[335311968,1724100643227,-150.0,0.00013209,2]
[335311969,1724100643237,-178.13102722,0.00013212,2]
[335311970,1724100643247,-150.0,0.00013219,2]
[335311971,1724100643256,-150.0,0.00013228,2]
[335311972,1724100643266,-150.0,0.00013247,2]
[335311973,1724100643276,-500.0,0.00013247,2]
[335311974,1724100643285,-150.0,0.00013254,2]
[335311975,1724100643296,-18476.66057535,0.00013256,2]
[335311976,1724100643307,-500.0,0.00013256,2]
[335311978,1724100643316,-568.636,0.00013259,2]
[335311980,1724100643325,-500.0,0.00013265,2]
[335311981,1724100643333,-150.0,0.00013265,2]
[335311983,1724100643343,-150.0,0.00013267,2]
[335311984,1724100643351,-500.0,0.00013273,2]
[335311986,1724100643361,-500.0,0.00013282,2]
[335311987,1724100643370,-150.0,0.00013284,2]
[335311988,1724100643380,-500.0,0.00013291,2]
[335311989,1724100643389,-500.0,0.000133,2]
[335311990,1724100643399,-816.0,0.000133,2]
[335311991,1724100643408,-150.0,0.00013302,2]
[335311992,1724100643418,-500.0,0.00013309,2]
[335311994,1724100643427,-596.72,0.0001331,2]
[335311995,1724100643437,-150.0,0.0001331,2]
[335311996,1724100643446,-500.0,0.00013317,2]
[335311997,1724100643456,-2297.034,0.0001332,2]
[335311998,1724100643466,-150.0,0.00013321,2]
[335311999,1724100643475,-500.0,0.00013326,2]
[335312000,1724100643485,-150.0,0.00013331,2]
[335312001,1724100643494,-1090.0,0.00013334,2]
[335312002,1724100643503,-500.0,0.00013335,2]
[335312003,1724100643513,-150.0,0.00013339,2]
[335312004,1724100643522,-400.0,0.00013342,2]
[335312005,1724100643532,-400.0,0.00013342,2]
[335312006,1724100643544,-400.0,0.00013342,2]
[335312007,1724100643561,-500.0,0.00013344,2]
[335312008,1724100643571,-500.0,0.00013353,2]
[335312009,1724100643580,-150.0,0.00013358,2]
[335312010,1724100643591,-500.0,0.00013361,2]
[335312011,1724100643600,-500.0,0.00013361,2]
[335312012,1724100643611,-150.0,0.00013367,2]
[335312013,1724100643621,-500.0,0.0001337,2]
[335312014,1724100643633,-500.0,0.0001337,2]
[335312015,1724100643642,-150.0,0.00013376,2]
[335312016,1724100643651,-500.0,0.00013379,2]
[335312017,1724100643661,-500.0,0.00013379,2]
[335312018,1724100643671,-500.0,0.00013388,2]
[335312019,1724100643680,-500.0,0.00013388,2]
[335312020,1724100643690,-500.0,0.00013388,2]
[335312021,1724100643701,-150.0,0.00013395,2]
[335312022,1724100643709,-150.0,0.00013395,2]
[335312023,1724100643719,-150.0,0.00013395,2]
[335312024,1724100643729,-150.0,0.00013395,2]
[335312025,1724100643739,-500.0,0.00013397,2]
[335312026,1724100643748,-500.0,0.00013397,2]
[335312027,1724100643757,-500.0,0.00013397,2]
[335312028,1724100643768,-500.0,0.00013405,2]
[335312029,1724100643777,-500.0,0.00013405,2]
[335312030,1724100643789,-500.0,0.00013405,2]
[335312031,1724100643798,-152.0,0.00013407,9]
[335312032,1724100643808,-150.0,0.00013414,2]
[335312033,1724100643818,-500.0,0.00013414,2]
[335312034,1724100643827,-500.0,0.00013414,2]
[335312035,1724100643837,-500.0,0.00013414,2]
[335312036,1724100643846,-500.0,0.00013417,2]
[335312037,1724100643856,-500.0,0.00013423,2]
[335312038,1724100643865,-500.0,0.00013423,2]
[335312039,1724100643875,-500.0,0.00013423,2]
[335312040,1724100643885,-150.0,0.00013423,2]
[335312041,1724100643895,-500.0,0.00013432,2]
[335312042,1724100643904,-500.0,0.00013432,2]
[335312043,1724100643914,-500.0,0.00013432,2]
[335312044,1724100643924,-500.0,0.00013432,2]
[335312045,1724100643934,-150.0,0.00013432,2]
[335312046,1724100643944,-500.0,0.00013441,2]
[335312047,1724100643953,-500.0,0.00013441,2]
[335312048,1724100643962,-500.0,0.00013441,2]
[335312049,1724100643971,-500.0,0.00013441,2]
[335312050,1724100643980,-153.15,0.00013442,2]
[335312051,1724100643990,-500.0,0.00013449,2]
[335312052,1724100643999,-500.0,0.00013449,2]
[335312053,1724100644009,-500.0,0.00013449,2]
[335312054,1724100644018,-500.0,0.00013449,2]
[335312055,1724100644027,-150.0,0.00013451,2]
[335312056,1724100644038,-500.0,0.00013458,2]
[335312057,1724100644047,-500.0,0.00013458,2]
[335312058,1724100644056,-500.0,0.00013458,2]
[335312059,1724100644065,-500.0,0.00013458,2]
[335312060,1724100644074,-150.0,0.00013459,2]
[335312061,1724100644083,-1090.0,0.00013464,2]
[335312062,1724100644093,-500.0,0.00013467,2]
[335312063,1724100644103,-500.0,0.00013467,2]
[335312064,1724100644112,-500.0,0.00013467,2]
[335312065,1724100644121,-500.0,0.00013467,2]
[335312066,1724100644130,-150.0,0.00013469,2]
[335312067,1724100644139,-500.0,0.00013476,2]
[335312068,1724100644148,-500.0,0.00013476,2]
[335312069,1724100644157,-500.0,0.00013476,2]
[335312070,1724100644166,-500.0,0.00013476,2]
[335312071,1724100644175,-150.0,0.0001348,2]
[335312072,1724100644185,-500.0,0.00013485,2]
[335312073,1724100644194,-500.0,0.00013485,2]
[335312074,1724100644203,-500.0,0.00013485,2]
[335312075,1724100644212,-500.0,0.00013485,2]
[335312076,1724100644221,-150.0,0.00013488,2]
[335312077,1724100644231,-500.0,0.00013493,2]
[335312078,1724100644239,-500.0,0.00013493,2]
[335312079,1724100644249,-500.0,0.00013493,2]
[335312080,1724100644258,-500.0,0.00013493,2]
[335312081,1724100644267,-1000.0,0.000135,2]
[335312082,1724100644276,-500.0,0.00013502,2]
[335312083,1724100644285,-500.0,0.00013502,2]
[335312084,1724100644295,-500.0,0.00013502,2]
[335312085,1724100644304,-500.0,0.00013502,2]
[335312086,1724100644313,-150.0,0.00013506,2]
[335312087,1724100644322,-500.0,0.00013511,2]
[335312088,1724100644331,-500.0,0.00013511,2]
[335312089,1724100644340,-500.0,0.00013511,2]
[335312090,1724100644349,-500.0,0.00013511,2]
[335312091,1724100644358,-500.0,0.0001352,2]
[335312092,1724100644366,-500.0,0.0001352,2]
[335312093,1724100644375,-500.0,0.0001352,2]
[335312094,1724100644384,-500.0,0.0001352,2]
[335312095,1724100644396,-150.0,0.00013523,2]
[335312096,1724100644405,-150.0,0.00013525,2]
[335312097,1724100644417,-500.0,0.00013529,2]
[335312098,1724100644426,-500.0,0.00013529,2]
[335312099,1724100644435,-500.0,0.00013529,2]
[335312100,1724100644445,-500.0,0.00013529,2]
[335312101,1724100644454,-150.0,0.00013536,2]
[335312102,1724100644464,-500.0,0.00013537,2]
[335312103,1724100644473,-500.0,0.00013537,2]
[335312104,1724100644482,-500.0,0.00013537,2]
[335312105,1724100644491,-500.0,0.00013537,2]
[335312106,1724100644500,-150.0,0.00013543,2]
[335312107,1724100644509,-150.0,0.00013562,2]
[335312108,1724100644518,-150.0,0.00013571,2]
[335312109,1724100644529,-150.0,0.00013581,2]
[335312110,1724100644539,-150.0,0.00013587,2]
[335312111,1724100644548,-150.0,0.00013592,2]
[335312112,1724100644557,-150.0,0.00013599,2]
[335312113,1724100644566,-150.0,0.00013618,2]
[335312114,1724100644576,-150.0,0.00013636,2]
[335312115,1724100644585,-8519.39978911,0.00013645,2]
[335312116,1724100644595,-150.0,0.00013649,2]
[335312117,1724100644605,-5000.0,0.00013649,2]
[335312118,1724100644614,-150.0,0.00013651,2]
[335312119,1724100644628,-500.74,0.00013652,2]
[335312120,1724100644639,-150.0,0.00013655,2]
[335312121,1724100644648,-150.0,0.00013673,2]
[335312122,1724100644657,-1400.35563931,0.00013676,2]
[335312123,1724100644667,-303.90469939,0.00013688,2]
[335312124,1724100644677,-8649.14989111,0.0001369,2]
[335312125,1724100644686,-5000.0,0.0001369,2]
[335312126,1724100644696,-5000.0,0.0001369,2]
[335312127,1724100644705,-5000.0,0.0001369,2]
[335312128,1724100644715,-150.0,0.00013692,2]
[335312129,1724100644724,-1000.0,0.00013698,2]
[335312130,1724100644733,-1000.0,0.00013698,2]
[335312131,1724100644742,-1000.0,0.00013698,2]
[335312132,1724100644751,-1000.0,0.00013698,2]
[335312133,1724100644761,-1000.0,0.00013698,2]
[335312134,1724100644770,-1000.0,0.00013698,2]
[335312135,1724100644779,-1000.0,0.00013698,2]
[335312136,1724100644790,-1000.0,0.00013698,2]
[335312137,1724100644799,-1000.0,0.00013698,2]
[335312138,1724100644808,-1000.0,0.00013698,2]
[335312139,1724100644818,-1000.0,0.00013698,2]
[335312140,1724100644827,-1000.0,0.00013698,2]
[335312141,1724100644836,-1000.0,0.00013698,2]
[335312142,1724100644845,-565.39720216,0.00013698,2]
[335312143,1724100644855,-326.13378455,0.00013698,2]
[335312144,1724100644864,-856.11,0.00013699,2]
[335312145,1724100644873,-2751.0,0.00013699,2]
[335312146,1724100644883,-2335.37,0.00013699,2]
[335312147,1724100644892,-200.0,0.00013699,2]
[335312148,1724100644902,-2943.94,0.00013699,2]
[335312149,1724100644911,-500.0,0.00013699,2]
[335312150,1724100644920,-300.0,0.00013699,2]
[335312151,1724100644929,-300.0,0.00013699,2]
[335312152,1724100644938,-300.0,0.00013699,2]
[335312153,1724100644947,-300.0,0.00013699,2]
[335312154,1724100644956,-300.0,0.00013699,2]
[335312155,1724100644966,-300.0,0.00013699,2]
[335312156,1724100644975,-300.0,0.00013699,2]
[335312157,1724100644984,-300.0,0.00013699,2]
[335312158,1724100644993,-2000.0,0.000137,4]
[335312159,1724100645003,-6904.9,0.000137,2]
[335312160,1724100645012,-6904.9,0.000137,2]
[335312161,1724100645022,-6904.9,0.000137,2]
[335312162,1724100645032,-6904.9,0.000137,2]
[335312163,1724100645042,-6904.9,0.000137,2]
[335312164,1724100645051,-150.0,0.00013705,2]
[335312165,1724100645060,-150.0,0.0001371,2]
[335312166,1724100645068,-150.0,0.00013715,2]
[335312167,1724100645077,-150.0,0.00013729,2]
[335312168,1724100645086,-596.72,0.00013735,2]
[335312169,1724100645096,-150.0,0.00013748,2]
[335312170,1724100645105,-150.0,0.00013748,2]
[335312171,1724100645114,-150.0,0.00013762,2]
[335312172,1724100645124,-150.0,0.00013766,2]
[335312173,1724100645133,-2000.0,0.0001377,2]
[335312174,1724100645142,-200.0,0.0001377,2]
[335312175,1724100645152,-200.0,0.0001377,2]
[335312176,1724100645161,-200.0,0.0001377,2]
[335312177,1724100645171,-150.0,0.0001378,2]
[335312178,1724100645180,-150.0,0.00013785,2]
[335312179,1724100645188,-300.0,0.00013799,2]
[335312180,1724100645197,-300.0,0.00013799,2]
[335312181,1724100645206,-300.0,0.00013799,2]
[335312182,1724100645215,-300.0,0.00013799,2]
[335312183,1724100645224,-300.0,0.00013799,2]
[335312184,1724100645353,-300.0,0.00013799,2]
[335312185,1724100645379,-300.0,0.00013799,2]
[335312186,1724100645388,-536.06793515,0.00013799,2]
[335312187,1724100645398,-19792.18521557,0.000138,2]
[335312188,1724100645407,-816.0,0.000138,2]
[335312189,1724100645416,-1019.5024,0.000138,2]
[335312190,1724100645426,-1019.5024,0.000138,2]
[335312191,1724100645435,-519785.39596376,0.000138,3]
[335312192,1724100645452,-550.1564575,0.000138,3]
[335312193,1724100645463,-12921.63839813,0.000138,3]
[335312194,1724100645483,-892.40355142,0.000138,3]
[335312195,1724100645493,-760.32601188,0.000138,3]
[335312196,1724100645505,-600.0,0.000138,3]
[335312197,1724100645516,-759.47400135,0.000138,3]
[335312198,1724100645527,-5029.4305011,0.000138,3]
[335312199,1724100645540,-2965.2,0.000138,3]
[335312200,1724100645555,-372.50946649,0.000138,3]
[335312201,1724100645566,-1224.96970469,0.000138,3]
[335312206,1724100645695,-623.2797952,0.00010807,2]
[335312207,1724100645706,-203.9402048,0.00010807,2]
[335312208,1724100645716,-451.22072221,0.000138,3]
[335312210,1724100645730,-1805.0,0.000138,3]
[335312213,1724100645741,-8625.11979875,0.000138,3]
[335312214,1724100645752,-52461.21065472,0.000138,3]
[335312215,1724100645762,-513.5765,0.000138,2]
[335312216,1724100645771,-513.5765,0.000138,2]
[335312217,1724100645781,-811.1795,0.000138,2]
[335312218,1724100645791,-811.1795,0.000138,2]
[335312219,1724100645800,-1175.6097,0.000138,2]
[335312220,1724100645810,-1175.6097,0.000138,2]
[335312221,1724100645819,-150.0,0.00013803,2]
[335312222,1724100645829,-150.0,0.00013818,2]
[335312223,1724100645838,-152.0,0.0001382,10]
[335312224,1724100645849,-150.0,0.00013822,2]
[335312225,1724100645858,-499.26,0.00013832,2]
[335312226,1724100645868,-150.0,0.0001384,2]
[335312227,1724100645877,-150.0,0.00013844,2]
[335312228,1724100645886,-794.0,0.00013849,2]
[335312229,1724100645895,-150.0,0.00013859,2]
[335312230,1724100645905,-11070.91902152,0.00013872,2]
[335312231,1724100645924,-834.92804833,0.00013872,2]
[335312232,1724100645935,-296.95776435,0.00013872,2]
[335312233,1724100645946,-566.62860673,0.00013872,2]
[335312234,1724100645961,-419.87653924,0.00013872,2]
[335312235,1724100645972,-317.58278286,0.00013872,2]
[335312236,1724100645983,-4969.76781232,0.00013872,2]
[335312237,1724100645992,-150.0,0.00013874,2]
[335312238,1724100646002,-150.0,0.00013877,2]
[335312239,1724100646011,-150.0,0.00013896,2]
[335312240,1724100646021,-300.0,0.00013899,2]
[335312241,1724100646031,-300.0,0.00013899,2]
[335312242,1724100646043,-300.0,0.00013899,2]
[335312243,1724100646052,-300.0,0.00013899,2]
[335312244,1724100646067,-300.0,0.00013899,2]
[335312245,1724100646076,-139.53218768,0.00013899,2]
[335312246,1724100646091,-160.46781232,0.00013899,2]
[335312247,1724100646101,-300.0,0.00013899,2]
[335312248,1724100646110,-68768.91412927,0.000139,3]
[335312249,1724100646121,-6802.33893354,0.000139,3]
[335312250,1724100646132,-524.26,0.000139,3]
[335312251,1724100646143,-29687.53780417,0.000139,3]
[335312252,1724100646154,-253.88923684,0.000139,3]
[335312253,1724100646166,-17268.42652662,0.000139,3]
[335312256,1724100646773,-457.46955249,0.000139,3]
[335312257,1724100646785,-6950.22205377,0.000139,3]
[335312258,1724100646876,-279.6363521,9.962e-05,2]
[335312259,1724100646888,-1408.1140944,9.962e-05,2]
[335312260,1724100646900,-638.25,9.962e-05,2]
[335312261,1724100646912,-587.2050527,9.962e-05,2]
[335312262,1724100646925,-1502.556,9.962e-05,2]
[335312263,1724100646937,-542.8838201,9.962e-05,2]
[335312264,1724100646949,-1782.40165594,9.962e-05,2]
[335312265,1724100646961,-436.81,9.962e-05,2]
[335312266,1724100646976,-376.87925389,9.962e-05,2]
[335312267,1724100646988,-12190.18403949,9.962e-05,2]
[335312268,1724100646998,-510.0,0.00013254,2]
[335312269,1724100647007,-349462.26959989,0.000139,3]
[335312270,1724100647022,-4778.87436627,0.000139,3]
[335312271,1724100647034,-120613.61172914,0.000139,3]
[335312272,1724100647045,-150.0,0.00013908,2]
[335312273,1724100647054,-2000.0,0.00013908,2]
[335312274,1724100647064,-200.0,0.00013908,2]
[335312275,1724100647074,-200.0,0.00013908,2]
[335312276,1724100647084,-200.0,0.00013908,2]
[335312277,1724100647094,-150.0,0.00013914,2]
[335312278,1724100647104,-173.61,0.00013923,2]
[335312279,1724100647114,-150.0,0.00013924,2]
[335312280,1724100647124,-150.0,0.00013931,2]
[335312281,1724100647134,-150.0,0.00013933,2]
[335312282,1724100647144,-150.0,0.00013952,2]
[335312283,1724100647154,-237.48,0.00013953,2]
[335312284,1724100647165,-150.0,0.0001397,2]
[335312285,1724100647174,-150.0,0.00013972,2]
[335312286,1724100647183,-150.0,0.00013972,2]
[335312287,1724100647193,-3036.580024,0.00013973,2]
[335312288,1724100647202,-150.0,0.00013985,2]
[335312289,1724100647212,-150.0,0.00013985,2]
[335312290,1724100647221,-150.0,0.00013987,2]
[335312291,1724100647231,-150.0,0.00013989,2]
[335312292,1724100647241,-35737.67799078,0.0001399,2]
[335312293,1724100647254,-4681.0,0.0001399,2]
[335312294,1724100647265,-1214.69466643,0.0001399,2]
[335312295,1724100647276,-362.2774596,0.0001399,2]
[335312296,1724100647314,-657.03123776,0.0001399,2]
[335312297,1724100647325,-2693.82653913,0.0001399,2]
[335312298,1724100647337,-18168.95753804,0.0001399,2]
[335312299,1724100647435,-579.69668993,0.0001399,2]
[335312300,1724100647447,-497.80249848,0.0001399,2]
[335312301,1724100910088,-1081.0,9.909e-05,2]
[335312302,1724100926848,454.71526494,9.899e-05,2]
[335312303,1724100927579,155.0,9.899e-05,2]
[335312304,1724100934271,630.38071899,9.899e-05,2]
[335312305,1724100943405,155.0,9.899e-05,2]
[335312306,1724100969667,419.34971777,9.899e-05,2]
[335312307,1724100971420,155.0,9.899e-05,2]
[335312308,1724100972713,603.94,9.521e-05,2]
[335312310,1724101202567,150.0,9.521e-05,2]
[335312328,1724101647875,603.4,9.307e-05,2]
[335312329,1724101774771,1268.93157185,9.307e-05,2]
[335312330,1724101777122,20392.66258053,9.307e-05,2]
[335312331,1724101782542,693.68338973,9.307e-05,2]
[335312332,1724101786013,3070.88521436,9.307e-05,2]
[335312334,1724101805709,499.97286808,9.307e-05,2]
[335312343,1724101831870,-586.0,9.909e-05,2]
[335312344,1724101831880,-300.0,9.999e-05,2]
[335312345,1724101831889,-104.05544266,0.0001,2]
[335312346,1724101831900,-2008.40784548,0.0001,2]
[335312347,1724101831910,-653.7077551,0.0001,2]
[335312348,1724101831920,-172.97978311,0.0001,2]
[335312349,1724101831929,-641.03323492,0.0001,2]
[335312350,1724101831941,-408.96676508,0.0001,2]
[335312351,1724101831951,-1051.05102404,0.0001,2]
[335312352,1724101831961,-230.73855163,0.0001,2]
[335312353,1724101831974,-196.56350179,0.0001,2]
[335312354,1724101831984,-900.61659918,0.0001,2]
[335312355,1724101831994,-150.0,0.00010153,2]
[335312356,1724101832003,-144.09972953,0.00010154,2]
[335312357,1724101832015,-355.90027047,0.00010154,2]
[335312358,1724101832024,-150.46146814,0.00010154,2]
[335312359,1724101832036,-349.53853186,0.00010154,2]
[335312360,1724101832047,-500.0,0.00010154,2]
[335312361,1724101832057,-454.71526494,0.00010566,2]
[335312362,1724101832067,-419.09658017,0.00010713,2]
[335312363,1724101832077,-155.0,0.00010713,2]
[335312364,1724101832086,-899.85,0.00010781,2]
[335312365,1724101832096,-296.1084,0.00010789,2]
[335312366,1724101832106,-2061.9428,0.00010789,2]
[335312367,1724101832116,-557.73307903,0.0001079,2]
[335312368,1724101832131,-1453.41873983,0.0001079,2]
[335312369,1724101832148,-305.92874023,0.0001079,2]
[335312371,1724101832166,-609.86344662,0.0001079,2]